bitfinex-derivatives/quotes_SOLF0:USTF0_20250830
["timestamp","ask_amount","ask_price","bid_price","bid_amount"]
[1756524738458,7.18,206.28,206.19,2.53]
[1756524738656,7.18,206.33,206.22,2.54]
[1756524738857,7.18,206.33,206.22,6.45372828]
[1756524739059,11.65150343,206.33,206.18,3.91372828]
[1756524739361,7.18,206.29,206.18,2.79363614]
[1756524739562,2.79363614,206.23,206.14,3.91372828]
[1756524739762,7.18,206.22,206.12,3.91372828]
[1756524739965,7.18,206.22,206.14,2.79363614]
[1756524740358,7.18,206.22,206.17,5.33363614]
[1756524740963,38.2,206.27,206.2,2.79363614]
[1756524741263,7.18,206.28,206.18,4.46914318]
[1756524742160,7.18,206.28,206.21,4.46914318]
[1756524742761,7.18,206.36,206.24,4.46914318]
[1756524745065,7.18,206.36,206.25,2.54]
[1756524745464,7.18,206.36,206.3,4.46914318]
[1756524746266,7.18,206.4,206.33,4.46914318]
[1756524746863,7.18,206.4,206.32,2.54]
[1756524747067,7.18,206.4,206.33,4.46914318]
[1756524747869,7.18,206.4,206.32,2.54]
[1756524748168,7.18,206.4,206.33,4.46914318]
[1756524748571,7.18,206.4,206.32,7.00914318]
[1756524749573,7.18,206.45,206.32,2.54]
[1756524749773,7.18,206.45,206.34,4.46914318]
[1756524750870,7.18,206.45,206.35,2.54]
[1756524753269,7.18,206.45,206.33,4.46914318]
[1756524753474,7.18,206.45,206.31,2.54]
[1756524753674,11.64914318,206.45,206.31,2.54]
[1756524754579,7.18,206.45,206.31,2.54]
[1756524756882,7.18,206.45,206.33,4.46914318]
[1756524757283,7.18,206.45,206.34,4.361]
[1756524757485,7.18,206.45,206.36,4.46914318]
[1756524757984,7.18,206.45,206.35,2.53]
[1756524760180,7.18,206.45,206.37,4.46914318]
[1756524762789,7.18,206.45,206.35,2.53]
[1756524763285,7.18,206.45,206.34,4.46914318]
[1756524764784,7.18,206.45,206.31,6.99914318]
[1756524766288,7.18,206.45,206.31,11.36084318]
[1756524766483,7.18,206.45,206.35,4.46914318]
[1756524767388,7.18,206.45,206.37,2.78866112]
[1756524767785,7.18,206.45,206.34,5.31866112]
[1756524767989,7.18,206.45,206.34,2.78866112]
[1756524769387,7.18,206.45,206.37,2.78866112]
[1756524770285,9.96866112,206.45,206.34,2.78866112]
[1756524771086,9.96866112,206.45,206.33,2.53]
[1756524771087,7.18,206.45,206.33,2.53]
[1756524771288,7.18,206.45,206.34,2.78866112]
[1756524771682,7.18,206.45,206.37,2.78866112]
[1756524772186,7.18,206.45,206.38,2.53]
[1756524772489,7.54,206.5,206.39,2.78866112]
[1756524772689,7.54,206.5,206.38,2.53]
[1756524772690,7.54,206.5,206.42,2.78866112]
[1756524774494,7.54,206.5,206.38,2.53]
[1756524774689,7.54,206.5,206.41,2.78866112]
[1756524776890,10.32866112,206.5,206.38,2.78866112]
[1756524777194,7.54,206.46,206.38,2.78866112]
[1756524778689,10.32866112,206.54,206.41,2.78866112]
[1756524780498,7.54,206.5,206.41,2.78866112]
[1756524781089,7.54,206.5,206.4,2.53]
[1756524781295,7.54,206.5,206.4,5.31866112]
[1756524783998,7.54,206.5,206.37,6.7023894]
[1756524783999,2.78866112,206.48,206.37,6.7023894]
[1756524784199,7.54,206.47,206.37,2.78866112]
[1756524785006,7.54,206.47,206.36,2.53]
[1756524785204,7.54,206.47,206.37,2.78866112]
[1756524786303,7.54,206.47,206.37,6.7023894]
[1756524787501,7.37,206.45,206.35,3.91372828]
[1756524787700,7.37,206.42,206.33,3.91372828]
[1756524788100,7.37,206.42,206.32,3.91372828]
[1756524788302,83.04,206.48,206.29,5.47115335]
[1756524788303,7.37,206.39,206.29,3.91372828]
[1756524788501,2.78866112,206.37,206.28,2.78866112]
[1756524788694,7.37,206.38,206.28,2.78866112]
[1756524789305,7.37,206.38,206.29,3.95525165]
[1756524789705,7.37,206.38,206.28,2.54]
[1756524790305,7.37,206.38,206.28,6.49525165]
[1756524791406,7.37,206.38,206.28,10.96044322]
[1756524791601,7.37,206.38,206.3,3.95525165]
[1756524792008,7.37,206.38,206.32,3.95525165]
[1756524792208,7.37,206.38,206.31,3.95525165]
[1756524792806,7.37,206.38,206.29,3.95525165]
[1756524793007,7.37,206.38,206.3,6.49525165]
[1756524794808,7.37,206.38,206.28,3.95525165]
[1756524795205,7.37,206.38,206.29,2.54]
[1756524795407,7.37,206.38,206.28,3.95525165]
[1756524796107,7.37,206.38,206.27,3.95525165]
[1756524796507,7.37,206.38,206.27,3.96066341]
[1756524796910,7.37,206.38,206.26,3.96066341]
[1756524797210,7.37,206.38,206.28,2.54]
[1756524797810,7.37,206.38,206.27,3.96066341]
[1756524798310,7.37,206.38,206.26,3.96066341]
[1756524799313,7.37,206.38,206.27,2.55]
[1756524799608,7.37,206.38,206.27,6.51066341]
[1756524800203,7.37,206.38,206.27,2.55]
[1756524801005,4.46519157,206.4,206.24,329.78066341]
[1756524801412,7.37,206.39,206.25,2.55]
[1756524801610,7.37,206.36,206.25,2.55]
[1756524801809,7.37,206.36,206.21,5.47115335]
[1756524801810,7.37,206.36,206.22,3.96066341]
[1756524802311,7.37,206.36,206.21,6.51066341]
[1756524802513,7.37,206.33,206.19,3.96066341]
[1756524802715,7.37,206.33,206.18,3.96066341]
[1756524802913,7.37,206.33,206.17,10.97585498]
[1756524803110,4.46519157,206.34,206.17,10.97585498]
[1756524803316,4.46519157,206.31,206.17,10.97585498]
[1756524803519,7.37,206.3,206.17,7.01519157]
[1756524803712,4.46519157,206.28,206.17,2.55]
[1756524803912,7.37,206.27,206.17,2.55]
[1756524804414,7.37,206.27,206.13,6.51066341]
[1756524804614,7.37,206.27,206.13,2.55]
[1756524804917,7.37,206.24,206.13,2.55]
[1756524805514,7.37,206.24,206.15,4.46519157]
[1756524805714,7.37,206.24,206.16,2.55]
[1756524805920,330.18519157,206.31,206.16,2.55]
[1756524805921,139.49,206.3,206.16,2.55]
[1756524806413,139.49,206.3,206.13,3.96066341]
[1756524806414,7.37,206.26,206.11,10.97585498]
[1756524806711,7.37,206.26,206.15,2.55]
[1756524806917,7.37,206.26,206.17,4.46519157]
[1756524807113,7.37,206.26,206.18,2.55]
[1756524809922,7.37,206.26,206.14,7.01519157]
[1756524811318,7.37,206.26,206.16,2.7944501]
[1756524813012,2.7944501,206.24,206.14,2.55]
[1756524813321,7.37,206.23,206.14,2.55]
[1756524813522,7.37,206.23,206.13,2.7944501]
[1756524814623,7.37,206.23,206.1,5.3444501]
[1756524814822,7.37,206.2,206.1,5.3444501]
[1756524815822,7.37,206.25,206.16,2.7944501]
[1756524816919,7.37,206.25,206.17,2.54]
[1756524817321,7.37,206.25,206.19,2.7944501]
[1756524819520,7.37,206.25,206.17,2.54]
[1756524819720,7.37,206.25,206.15,2.7944501]
[1756524819921,7.37,206.25,206.16,2.7944501]
[1756524822021,7.59,206.3,206.19,5.3344501]
[1756524823017,7.59,206.28,206.16,2.7944501]
[1756524823223,7.59,206.28,206.17,2.54]
[1756524823417,7.59,206.28,206.19,2.7944501]
[1756524825421,7.59,206.28,206.18,2.7944501]
[1756524825827,7.59,206.28,206.21,2.7944501]
[1756524830123,7.59,206.28,206.17,3.96066341]
[1756524830320,7.59,206.28,206.16,2.54]
[1756524830321,7.59,206.28,206.18,2.7944501]
[1756524830527,7.59,206.28,206.19,2.54]
[1756524830828,7.59,206.28,206.2,2.7944501]
[1756524831223,7.59,206.32,206.26,2.7944501]
[1756524831632,7.59,206.32,206.23,5.3344501]
[1756524831825,7.59,206.32,206.23,2.54]
[1756524832430,7.59,206.32,206.23,5.3344501]
[1756524832625,7.59,206.32,206.22,2.7944501]
[1756524832830,7.59,206.32,206.21,3.96066341]
[1756524833030,7.59,206.3,206.2,2.7944501]
[1756524833426,139.07,206.3,206.2,2.7944501]
[1756524833632,141.8644501,206.3,206.2,2.7944501]
[1756524833826,7.59,206.3,206.2,2.7944501]
[1756524834828,7.59,206.3,206.21,3.96066341]
[1756524835526,7.59,206.3,206.22,3.96066341]
[1756524835929,7.59,206.3,206.23,2.7944501]
[1756524836231,7.59,206.34,206.24,6.75511351]
[1756524836536,10.3844501,206.34,206.22,6.50066341]
[1756524836725,10.3844501,206.34,206.22,2.54]
[1756524838637,141.7244501,206.34,206.22,2.54]
[1756524839436,141.7244501,206.34,206.22,6.50066341]
[1756524839637,141.7244501,206.34,206.24,2.7944501]
[1756524839938,10.3844501,206.34,206.24,2.7944501]
[1756524840138,7.59,206.34,206.27,2.7944501]
[1756524840838,10.3844501,206.34,206.24,6.75511351]
[1756524841036,10.3844501,206.34,206.23,3.96066341]
[1756524842232,104.9444501,206.34,206.23,3.96066341]
[1756524843040,7.59,206.3,206.21,3.96066341]
[1756524843540,7.59,206.3,206.21,9.29511351]
[1756524843739,7.59,206.3,206.22,3.96066341]
[1756524843937,7.59,206.3,206.23,3.96066341]
[1756524844137,7.59,206.3,206.21,3.96066341]
[1756524845241,7.59,206.3,206.22,3.96066341]
[1756524845444,7.59,206.3,206.24,3.96066341]
[1756524845742,7.59,206.3,206.23,9.29511351]
[1756524846141,7.59,206.3,206.25,3.96066341]
[1756524846340,7.59,206.3,206.25,6.50066341]
[1756524847543,7.16,206.34,206.26,2.7944501]
[1756524847740,7.16,206.34,206.27,3.96066341]
[1756524848642,0.84365682,206.4,206.29,2.7944501]
[1756524848841,7.16,206.38,206.32,2.7944501]
[1756524849740,7.16,206.38,206.3,3.96066341]
[1756524849937,7.16,206.38,206.27,3.96066341]
[1756524850142,7.16,206.38,206.29,2.7944501]
[1756524850343,7.16,206.38,206.32,2.7944501]
[1756524851240,7.16,206.38,206.35,2.7944501]
[1756524851438,7.16,206.42,206.32,2.7944501]
[1756524852036,7.16,206.42,206.33,2.54]
[1756524852237,7.16,206.42,206.33,6.50066341]
[1756524852540,7.16,206.42,206.33,2.54]
[1756524854748,7.16,206.42,206.32,2.7944501]
[1756524855242,7.16,206.42,206.29,5.3344501]
[1756524855744,7.16,206.42,206.29,2.54]
[1756524855949,7.16,206.39,206.29,2.7944501]
[1756524856148,7.16,206.39,206.26,3.96066341]
[1756524856149,2.7944501,206.37,206.26,3.96066341]
[1756524856341,7.16,206.35,206.25,2.54]
[1756524856545,7.16,206.33,206.22,3.96066341]
[1756524856744,7.16,206.3,206.2,2.7944501]
[1756524856947,7.16,206.3,206.18,3.96066341]
[1756524857152,7.16,206.3,206.2,2.7944501]
[1756524858046,15.88,206.36,206.26,2.7944501]
[1756524858848,15.88,206.36,206.24,2.54]
[1756524859052,15.88,206.36,206.23,2.7944501]
[1756524859053,7.16,206.33,206.23,2.7944501]
[1756524860248,2.7944501,206.31,206.2,2.7944501]
[1756524860455,7.16,206.3,206.2,2.7944501]
[1756524863948,7.16,206.3,206.19,6.49066341]
[1756524864159,7.16,206.27,206.17,6.75511351]
[1756524864454,7.16,206.27,206.17,2.7944501]
[1756524865155,7.16,206.27,206.15,9.28511351]
[1756524865854,2.7944501,206.28,206.15,9.28511351]
[1756524866054,7.16,206.27,206.15,9.28511351]
[1756524868458,7.16,206.27,206.16,2.53]
[1756524871462,2.7944501,206.25,206.15,3.96066341]
[1756524871760,7.16,206.24,206.13,3.96066341]
[1756524872362,7.16,206.24,206.14,2.53]
[1756524872661,7.16,206.24,206.15,2.7944501]
[1756524872861,7.16,206.24,206.14,2.53]
[1756524873563,7.16,206.24,206.14,6.49066341]
[1756524873863,7.16,206.24,206.15,5.3244501]
[1756524874060,7.16,206.24,206.18,2.7944501]
[1756524874468,7.16,206.24,206.15,5.3244501]
[1756524874662,7.16,206.24,206.15,2.53]
[1756524875267,7.16,206.24,206.16,2.7944501]
[1756524875467,7.16,206.24,206.15,5.3244501]
[1756524875763,7.16,206.24,206.15,9.28511351]
[1756524876167,2.7944501,206.24,206.15,3.96066341]
[1756524876366,7.16,206.23,206.14,3.96066341]
[1756524876566,2.7944501,206.21,206.1,3.96066341]
[1756524876867,7.33,206.2,206.08,9.28511351]
[1756524877064,2.7944501,206.21,206.08,9.28511351]
[1756524877265,7.33,206.2,206.08,9.28511351]
[1756524877463,2.7944501,206.21,206.08,9.28511351]
[1756524877969,7.33,206.2,206.08,9.28511351]
[1756524878166,7.33,206.2,206.12,2.55]
[1756524878766,10.1244501,206.2,206.08,9.30511351]
[1756524878966,2.7944501,206.2,206.08,9.30511351]
[1756524879165,7.33,206.19,206.08,9.30511351]
[1756524880169,7.33,206.16,206.04,9.30511351]
[1756524880368,7.33,206.16,206.04,5.3444501]
[1756524884876,7.33,206.13,206.0,6.51066341]
[1756524885173,7.33,206.13,206.02,2.55]
[1756524886386,7.33,206.13,206.02,5.3444501]
[1756524886567,2.7944501,206.11,206.02,2.55]
[1756524886771,7.33,206.1,206.02,2.55]
[1756524886971,10.1244501,206.1,205.97,2.55]
[1756524887179,10.1244501,206.1,205.98,2.7944501]
[1756524887478,10.1244501,206.1,205.97,2.55]
[1756524887671,10.1244501,206.1,205.99,2.7944501]
[1756524888267,10.1244501,206.1,205.98,2.7944501]
[1756524889075,7.33,206.06,205.97,2.55]
[1756524892873,7.33,206.06,205.99,2.7944501]
[1756524893273,130.12,206.11,206.0,2.55]
[1756524893469,7.33,206.1,206.02,2.7944501]
[1756524894671,7.33,206.1,206.05,5.3444501]
[1756524894875,7.33,206.1,206.06,2.55]
[1756524895280,7.33,206.14,206.06,2.55]
[1756524897171,7.33,206.14,206.03,2.7944501]
[1756524897784,7.33,206.11,206.01,5.3444501]
[1756524898573,7.33,206.11,206.04,5.3444501]
[1756524898972,326.02,206.15,206.04,5.3444501]
[1756524899272,333.35,206.15,206.04,5.3444501]
[1756524899473,333.35,206.15,206.04,2.55]
[1756524899781,333.35,206.15,206.05,2.7944501]
[1756524901081,333.35,206.15,206.0,6.75511351]
[1756524901082,7.33,206.12,206.02,2.7944501]
[1756524902282,7.33,206.12,206.03,2.55]
[1756524902482,7.33,206.12,206.05,2.7944501]
[1756524902682,7.33,206.12,206.03,2.55]
[1756524903177,10.1244501,206.12,206.01,2.7944501]
[1756524905382,7.33,206.12,206.02,2.55]
[1756524905584,7.33,206.12,206.05,2.7944501]
[1756524905784,455.86,206.15,206.05,5.3444501]
[1756524906385,7.33,206.14,206.05,5.3444501]
[1756524910288,7.33,206.14,206.05,2.55]
[1756524910489,7.33,206.14,206.07,2.7944501]
[1756524910786,7.33,206.14,206.05,2.55]
[1756524910988,7.33,206.14,206.06,2.7944501]
[1756524911984,326.1,206.27,206.09,5.3444501]
[1756524912288,7.62,206.21,206.09,5.3444501]
[1756524912484,7.62,206.19,206.09,5.3444501]
[1756524913381,10.4144501,206.19,206.06,2.7944501]
[1756524918190,7.62,206.15,206.06,2.7944501]
[1756524920685,2.7944501,206.13,206.03,3.96066341]
[1756524920890,7.62,206.09,206.01,6.50066341]
[1756524921196,7.62,206.09,205.99,3.96066341]
[1756524921593,7.62,206.06,205.97,3.96066341]
[1756524921790,36.14,206.12,205.95,3.96066341]
[1756524921791,2.7944501,206.04,205.95,3.96066341]
[1756524921996,7.62,206.03,205.95,3.96066341]
[1756524924186,7.62,206.07,205.97,2.54]
[1756524924393,7.62,206.07,205.98,3.96066341]
[1756524925195,7.62,206.07,205.97,6.50066341]
[1756524925691,2.7944501,206.03,205.95,3.96066341]
[1756524925891,7.62,206.02,205.93,3.96066341]
[1756524926786,7.62,206.02,205.92,6.50066341]
[1756524928396,7.62,206.02,205.92,2.54]
[1756524928889,7.62,206.02,205.92,6.50066341]
[1756524929288,7.62,205.99,205.91,3.96066341]
[1756524929487,7.62,205.99,205.9,3.96066341]
[1756524931295,7.62,205.99,205.89,6.50066341]
[1756524931600,7.62,205.96,205.88,3.96066341]
[1756524931798,7.62,205.96,205.87,3.96066341]
[1756524932399,7.62,205.96,205.86,2.7944501]
[1756524932400,7.62,205.96,205.86,6.75511351]
[1756524933700,7.62,206.09,205.92,2.7944501]
[1756524933994,7.62,206.05,205.95,5.3344501]
[1756524934199,7.62,206.05,205.95,9.29511351]
[1756524934395,7.62,206.05,205.95,5.3344501]
[1756524934791,7.62,206.05,205.95,9.29511351]
[1756524935398,7.62,206.05,205.97,2.7944501]
[1756524935994,7.62,206.05,205.95,6.50066341]
[1756524936195,7.62,206.05,205.97,2.7944501]
[1756524937000,7.35,206.1,205.98,2.55]
[1756524937202,7.35,206.1,206.0,2.7944501]
[1756524937502,7.35,206.1,206.03,2.7944501]
[1756524937701,5.44055952,206.28,206.06,2.7944501]
[1756524937898,7.35,206.2,206.09,2.7944501]
[1756524939095,7.35,206.2,206.1,2.55]
[1756524939498,7.35,206.2,206.05,3.96066341]
[1756524939499,4.47333933,206.17,206.05,3.96066341]
[1756524939704,4.47333933,206.17,206.03,2.55]
[1756524939705,7.35,206.16,206.03,2.55]
[1756524939905,7.35,206.16,206.03,6.51066341]
[1756524940204,7.35,206.16,206.03,10.98400274]
[1756524945905,7.35,206.17,206.03,10.98400274]
[1756524946110,4.47333933,206.18,206.03,10.98400274]
[1756524946313,7.35,206.14,206.0,3.96066341]
[1756524946511,7.35,206.11,205.99,2.55]
[1756524948106,7.35,206.08,205.99,2.55]
[1756524950610,7.35,206.12,206.01,4.47333933]
[1756524950802,7.35,206.12,206.02,2.55]
[1756524951814,7.35,206.12,206.02,3.96066341]
[1756524952005,7.35,206.12,206.03,2.55]
[1756524956117,7.35,206.12,206.01,4.47333933]
[1756524956711,7.35,206.12,206.02,2.55]
[1756524958007,7.35,206.12,206.04,4.47333933]
[1756524958206,7.35,206.19,206.05,2.55]
[1756524959111,7.35,206.19,206.08,2.55]
[1756524959517,7.35,206.19,206.08,6.51066341]
[1756524959713,72.74,206.24,206.11,2.55]
[1756524959714,7.35,206.24,206.11,2.55]
[1756524959920,7.35,206.24,206.11,6.51066341]
[1756524960213,7.35,206.24,206.13,4.47333933]
[1756524960512,7.35,206.34,206.19,4.47333933]
[1756524960718,7.35,206.32,206.17,2.55]
[1756524962817,7.35,206.32,206.2,2.55]
[1756524974327,7.35,206.32,206.2,7.02333933]
[1756524976926,7.35,206.32,206.21,2.54]
[1756524977331,7.35,206.32,206.22,2.79228403]
[1756524978037,7.35,206.32,206.23,2.54]
[1756524978228,7.35,206.32,206.25,2.79228403]
[1756524978432,7.35,206.32,206.25,5.33228403]
[1756524980229,7.35,206.32,206.25,2.54]
[1756524981134,7.35,206.32,206.26,2.79228403]
[1756524982043,7.63,206.38,206.26,2.79228403]
[1756524983035,0.03218347,206.34,206.26,2.79228403]
[1756524984438,0.03218347,206.34,206.27,2.54]
[1756524985332,0.03218347,206.34,206.28,0.03378496]
[1756524989634,0.03218347,206.34,206.29,2.79228403]
[1756524990532,0.03218347,206.34,206.29,2.54]
[1756524990737,0.03218347,206.34,206.3,2.54]
[1756524992141,0.03218347,206.34,206.29,2.79228403]
[1756524992342,0.03218347,206.34,206.3,2.54]
[1756524993141,0.03218347,206.34,206.29,2.79228403]
[1756524993344,0.03218347,206.34,206.3,2.54]
[1756524993842,0.03218347,206.34,206.29,2.79228403]
[1756524994434,0.03218347,206.34,206.33,2.54]
[1756525003453,0.03218347,206.34,206.33,6.47630758]
[1756525003654,0.03218347,206.34,206.33,2.54]
[1756525003854,0.03218347,206.34,206.33,6.47630758]
[1756525004653,0.03218347,206.34,206.33,6.94630758]
[1756525004853,7.42,206.44,206.37,5.32228403]
[1756525005154,7.42,206.44,206.4,2.79228403]
[1756525005360,7.42,206.44,206.4,5.32228403]
[1756525005653,7.42,206.52,206.41,2.53]
[1756525005852,7.42,206.52,206.43,2.79228403]
[1756525006558,7.42,206.52,206.49,2.79228403]
[1756525006762,7.42,206.59,206.47,2.79228403]
[1756525007555,7.42,206.59,206.51,0.03568442]
[1756525007958,7.42,206.57,206.51,0.03568442]
[1756525015568,2.79228403,206.52,206.42,2.79228403]
[1756525015866,7.42,206.51,206.42,2.79228403]
[1756525020169,7.42,206.51,206.37,3.93597398]
[1756525020469,7.42,206.48,206.37,2.57]
[1756525020668,7.42,206.48,206.4,2.79228403]
[1756525020873,7.42,206.48,206.41,2.57]
[1756525021671,7.42,206.48,206.42,2.79228403]
[1756525025777,127.1,206.54,206.43,2.79228403]
[1756525026072,7.42,206.53,206.43,2.79228403]
[1756525026576,7.42,206.53,206.41,2.57]
[1756525026773,7.42,206.53,206.43,2.79228403]
[1756525027070,7.42,206.53,206.46,2.79228403]
[1756525027477,7.42,206.53,206.47,2.79228403]
[1756525028379,7.65,206.58,206.48,2.53]
[1756525028773,7.65,206.58,206.5,2.79228403]
[1756525029174,7.65,206.58,206.48,2.53]
[1756525029375,7.65,206.58,206.5,2.79228403]
[1756525031376,7.65,206.58,206.48,2.53]
[1756525031578,7.65,206.58,206.49,2.79228403]
[1756525032174,7.65,206.58,206.5,2.53]
[1756525036787,7.65,206.58,206.49,2.79228403]
[1756525037483,7.65,206.58,206.48,2.53]
[1756525037686,7.65,206.58,206.48,2.79228403]
[1756525038986,7.68699612,206.55,206.51,0.03102381]
[1756525039188,0.03699612,206.55,206.51,5.38330784]
[1756525039388,7.65,206.54,206.51,0.03102381]
[1756525040182,0.03699612,206.55,206.51,0.03102381]
[1756525040385,7.65,206.54,206.51,0.03102381]
[1756525042186,0.03699612,206.55,206.51,0.03102381]
[1756525043193,7.65,206.54,206.51,0.03102381]
[1756525043489,0.03699612,206.55,206.51,0.03102381]
[1756525043789,7.65,206.54,206.51,0.03102381]
[1756525044678,0.03699612,206.55,206.51,0.03102381]
[1756525044880,7.65,206.54,206.51,0.03102381]
[1756525045590,2.82928015,206.55,206.51,0.03102381]
[1756525045892,7.65,206.54,206.51,0.03102381]
[1756525046691,0.03699612,206.55,206.52,2.56]
[1756525046890,0.03699612,206.55,206.51,2.82330784]
[1756525047091,0.03699612,206.55,206.51,5.38330784]
[1756525047493,0.03699612,206.55,206.51,2.59102381]
[1756525048590,0.03699612,206.55,206.52,2.56]
[1756525049191,0.03699612,206.55,206.53,2.56]
[1756525049384,0.03699612,206.55,206.54,2.56]
[1756525049589,0.03699612,206.55,206.54,6.49597398]
[1756525050692,0.03699612,206.55,206.54,3.93597398]
[1756525050887,0.03699612,206.55,206.54,2.56]
[1756525052090,0.03699612,206.55,206.54,6.49597398]
[1756525052290,0.03699612,206.55,206.54,2.56]
[1756525053196,20.10175535,206.61,206.54,3.04]
[1756525053495,20.10175535,206.61,206.59,2.56]
[1756525054193,20.10175535,206.61,206.56,3.93597398]
[1756525054392,20.10175535,206.61,206.6,2.79228403]
[1756525054600,20.10175535,206.61,206.6,5.35228403]
[1756525055397,7.65,206.72,206.63,2.79228403]
[1756525055599,7.65,206.72,206.63,5.35228403]
[1756525056096,7.65,206.72,206.65,0.03407791]
[1756525058602,10.44228403,206.72,206.65,0.03407791]
[1756525060307,2.79228403,206.69,206.65,0.03407791]
[1756525060507,7.22,206.68,206.65,0.03407791]
[1756525061004,7.7,206.68,206.65,0.03407791]
[1756525061198,0.48,206.68,206.65,0.03407791]
[1756525061707,7.22,206.67,206.65,0.03407791]
[1756525061907,7.22,206.67,206.56,5.35228403]
[1756525063006,7.22,206.67,206.56,2.56]
[1756525063207,10.01228403,206.67,206.56,2.56]
[1756525063401,10.01228403,206.67,206.57,2.79228403]
[1756525065311,7.22,206.67,206.57,2.79228403]
[1756525065505,7.22,206.67,206.56,2.56]
[1756525065809,7.22,206.67,206.58,2.79228403]
[1756525068214,7.22,206.67,206.61,2.79228403]
[1756525068613,7.22,206.67,206.61,5.38228403]
[1756525069412,7.22,206.67,206.61,2.79228403]
[1756525069612,7.22,206.67,206.58,2.79228403]
[1756525070015,22.9,206.76,206.62,2.59]
[1756525070212,7.22,206.73,206.62,2.59]
[1756525070613,0.03064377,206.71,206.62,2.59]
[1756525070808,7.22,206.7,206.62,2.59]
[1756525073516,7.22,206.7,206.59,2.79228403]
[1756525074019,14.56,206.53,206.32,5.24820925]
[1756525074214,4.85,206.34,206.23,2.5]
[1756525074414,4.449554,206.33,206.23,2.5]
[1756525074619,2.79228403,206.29,206.23,2.5]
[1756525074816,8.47703379,206.28,206.23,2.5]
[1756525075018,8.47703379,206.27,206.19,2.79228403]
[1756525075213,4.44272711,206.26,206.19,2.79228403]
[1756525075418,2.79228403,206.35,206.19,2.79228403]
[1756525075617,9.13706475,206.34,206.29,14.04157916]
[1756525075823,4.85,206.32,206.29,14.04157916]
[1756525076021,9.13706475,206.31,206.22,2.79228403]
[1756525076219,9.13706475,206.3,206.29,14.04157916]
[1756525076621,4.43738651,206.3,206.27,99.92]
[1756525076820,4.85,206.32,206.29,14.04157916]
[1756525077020,4.43117905,206.31,206.29,14.04157916]
[1756525077217,4.43117905,206.3,206.27,106.8]
[1756525077417,4.43117905,206.29,206.21,4.46693054]
[1756525077619,4.85,206.32,206.29,14.04157916]
[1756525077918,4.08167444,206.31,206.29,14.04157916]
[1756525078115,4.85,206.32,206.22,120.69]
[1756525078116,4.85,206.32,206.22,7.35]
[1756525078429,5.31060781,206.39,206.23,15.7]
[1756525078430,8.9274927,206.31,206.23,15.7]
[1756525078728,8.9274927,206.3,206.25,14.04157916]
[1756525078916,4.0774927,206.29,206.25,14.04157916]
[1756525080026,4.85,206.3,206.26,14.04157916]
[1756525080220,4.85,206.37,206.22,7.35]
[1756525080428,7.67773552,206.36,206.26,7.35]
[1756525080726,4.07244308,206.35,206.3,14.04157916]
[1756525080920,8.92244308,206.34,206.3,14.04157916]
[1756525081128,4.85,206.38,206.27,7.35]
[1756525081326,4.07077212,206.37,206.31,14.04157916]
[1756525081525,4.85,206.35,206.31,14.04157916]
[1756525081726,4.85,206.35,206.28,146.74]
[1756525081927,4.85,206.35,206.31,14.04157916]
[1756525082327,5.69367727,206.39,206.31,14.04157916]
[1756525082733,4.85,206.39,206.32,14.04157916]
[1756525083230,4.85,206.39,206.31,146.44]
[1756525083433,0.84350345,206.42,206.33,7.35]
[1756525083633,4.85,206.5,206.41,14.04157916]